bitfinex/quotes_BTCUSD_20220731
["timestamp","ask_amount","ask_price","bid_price","bid_amount"]
[1659276462070,0.07592778,23687.0,23684.0,0.491572]
[1659276462347,0.03164089,23687.0,23684.0,0.441572]
[1659276462479,0.03164089,23687.0,23684.0,0.40725733]
[1659276462903,0.03164089,23687.0,23684.0,0.44150969]
[1659276463099,0.03164089,23687.0,23684.0,0.44269689]
[1659276463100,0.02592778,23687.0,23684.0,0.44269689]
[1659276463403,0.07592778,23687.0,23684.0,0.44269689]
[1659276463590,0.00529231,23686.0,23683.0,0.1297]
[1659276463800,0.05529231,23686.0,23683.0,0.53695733]
[1659276464014,0.05529231,23686.0,23683.0,0.57132825]
[1659276464239,0.05,23686.0,23683.0,0.57132825]
[1659276464906,0.056,23686.0,23684.0,0.3]
[1659276466195,0.02592778,23687.0,23684.0,0.3]
[1659276466900,0.06792778,23687.0,23684.0,0.3]
[1659276467138,0.04367897,23687.0,23684.0,0.616498]
[1659276467357,0.04367897,23687.0,23685.0,0.304067]
[1659276467577,0.04367897,23687.0,23686.0,0.33425236]
[1659276467801,0.04367897,23687.0,23686.0,0.63831936]
[1659276468271,0.00167897,23687.0,23686.0,0.33425236]
[1659276468488,0.00167897,23687.0,23686.0,0.63831936]
[1659276468712,0.00167897,23687.0,23686.0,0.33425236]
[1659276468954,0.05667897,23687.0,23686.0,0.03425236]
[1659276470164,0.05667897,23687.0,23686.0,0.33831936]
[1659276470407,0.05667897,23687.0,23686.0,0.33425236]
[1659276470638,0.05667897,23687.0,23686.0,0.63831936]
[1659276470866,0.00167897,23687.0,23686.0,0.33466816]
[1659276471347,0.00167897,23687.0,23686.0,0.63873516]
[1659276471570,0.00158406,23687.0,23686.0,1.17569249]
[1659276471802,0.05658406,23687.0,23686.0,1.17569249]
[1659276472259,0.05658406,23687.0,23686.0,0.71174013]
[1659276472484,0.05658406,23687.0,23686.0,0.74599249]
[1659276472927,0.05658406,23687.0,23686.0,0.82499249]
[1659276473169,0.00158406,23687.0,23686.0,0.82499249]
[1659276473403,0.00158406,23687.0,23686.0,0.87499249]
[1659276473700,0.00158406,23687.0,23686.0,1.22499249]
[1659276474146,0.00158406,23687.0,23686.0,1.14599249]
[1659276474363,0.00158406,23687.0,23686.0,1.27569249]
[1659276475016,0.00158406,23687.0,23686.0,1.35569249]
[1659276476375,0.00158406,23687.0,23686.0,1.27569249]
[1659276476950,0.00158406,23687.0,23686.0,1.35569249]
[1659276477771,0.00158406,23687.0,23686.0,1.36832827]
[1659276478212,0.00158406,23687.0,23686.0,1.28832827]
[1659276478880,0.00158406,23687.0,23686.0,1.36832827]
[1659276479781,0.00158406,23687.0,23686.0,0.79132433]
[1659276480236,0.00158406,23687.0,23686.0,0.71132433]
[1659276480883,0.08058406,23687.0,23686.0,0.71132433]
[1659276481541,0.10483287,23687.0,23686.0,0.71132433]
[1659276481783,0.10483287,23687.0,23686.0,1.06132433]
[1659276481784,0.08058406,23687.0,23686.0,1.06132433]
[1659276482272,0.00158406,23687.0,23686.0,1.09557669]
[1659276482932,0.00158406,23687.0,23686.0,1.17457669]
[1659276484301,0.00158406,23687.0,23686.0,1.09557669]
[1659276484963,0.08058406,23687.0,23686.0,1.09557669]
[1659276486349,0.00158406,23687.0,23686.0,0.74557669]
[1659276486592,0.00158406,23687.0,23686.0,1.09557669]
[1659276487023,0.00158406,23687.0,23686.0,1.17457669]
[1659276487249,0.00158406,23687.0,23686.0,1.17795266]
[1659276488147,0.00158406,23687.0,23686.0,1.22795266]
[1659276488577,0.00158406,23687.0,23686.0,1.14895266]
[1659276489112,0.00158406,23687.0,23686.0,1.17795266]
[1659276490234,0.00158406,23687.0,23686.0,1.09895266]
[1659276490921,0.00158406,23687.0,23686.0,1.14895266]
[1659276491152,0.00158406,23687.0,23686.0,1.09895266]
[1659276491375,0.00158406,23687.0,23686.0,1.19033474]
[1659276491835,0.00158406,23687.0,23686.0,1.24033474]
[1659276492721,0.00158406,23687.0,23686.0,1.16133474]
[1659276492978,0.00158406,23687.0,23686.0,1.19033474]
[1659276493530,0.00158406,23687.0,23686.0,0.82795266]
[1659276493758,0.00158406,23687.0,23686.0,0.82457669]
[1659276494190,0.00158406,23687.0,23686.0,0.74557669]
[1659276494651,0.00050497,23687.0,23686.0,0.74557669]
[1659276494870,0.00050497,23687.0,23686.0,1.10822017]
[1659276495082,0.07950497,23687.0,23686.0,1.15822017]
[1659276495800,0.08065903,23687.0,23686.0,1.15822017]
[1659276496217,0.00165903,23687.0,23686.0,1.15822017]
[1659276497011,0.00165903,23687.0,23686.0,1.23822017]
[1659276497213,0.00165903,23687.0,23686.0,1.2404466]
[1659276498168,0.00165903,23687.0,23686.0,1.1604466]
[1659276498488,0.00165903,23687.0,23686.0,0.7604466]
[1659276498706,0.00165903,23687.0,23686.0,0.74780312]
[1659276498937,0.00165903,23687.0,23686.0,0.82680312]
[1659276499670,0.00165903,23687.0,23686.0,0.92680312]
[1659276499893,0.00165903,23687.0,23686.0,1.2394466]
[1659276500105,0.00165903,23687.0,23686.0,1.1604466]
[1659276500973,0.00165903,23687.0,23686.0,1.2404466]
[1659276502221,0.00165903,23687.0,23686.0,1.1604466]
[1659276502910,0.00165903,23687.0,23686.0,1.7279466]
[1659276503145,0.00165903,23687.0,23686.0,1.74084715]
[1659276503369,0.0297,23697.0,23686.0,1.74084715]
[1659276503370,0.30185766,23699.0,23688.0,0.15395119]
[1659276503601,0.0011,23700.0,23697.0,0.1297]
[1659276503825,0.0011,23700.0,23698.0,0.03425236]
[1659276504060,0.0011,23700.0,23698.0,0.33425236]
[1659276505056,0.07381311,23700.0,23697.0,0.53695733]
[1659276505296,0.0681,23700.0,23698.0,0.03425236]
[1659276505534,0.0681,23700.0,23698.0,0.33425236]
[1659276505994,0.06965655,23700.0,23698.0,0.33425236]
[1659276506223,0.00265655,23700.0,23698.0,0.33425236]
[1659276506445,0.00265655,23700.0,23698.0,0.03425236]
[1659276506914,0.067,23700.0,23698.0,0.0341483]
[1659276507415,0.067,23700.0,23698.0,0.3341483]
[1659276507888,0.062,23700.0,23698.0,0.3341483]
[1659276508111,0.0015859,23699.0,23698.0,0.3341483]
[1659276508708,0.0015859,23699.0,23698.0,0.00020046]
[1659276508912,0.0495859,23699.0,23698.0,0.00020046]
[1659276509258,0.048,23699.0,23698.0,0.70745779]
[1659276509464,0.048,23699.0,23698.0,1.01152479]
[1659276509658,0.048,23699.0,23698.0,0.70745779]
[1659276510110,0.001,23702.0,23698.0,0.70745779]
[1659276510319,0.001,23702.0,23699.0,0.44140564]
[1659276510520,0.001,23702.0,23699.0,0.49140564]
[1659276510960,0.047,23702.0,23699.0,0.44140564]
[1659276511185,0.047,23702.0,23699.0,0.49140564]
[1659276511393,0.047,23702.0,23699.0,0.44140564]
[1659276511607,0.047,23702.0,23700.0,0.3]
[1659276511819,0.047,23702.0,23701.0,0.00020043]
[1659276512037,0.03843,23702.0,23701.0,0.00020043]
[1659276512471,0.00681716,23703.0,23699.0,0.44140564]
[1659276512706,0.31088416,23703.0,23699.0,0.44140564]
[1659276512936,0.051,23702.0,23699.0,0.44140564]
[1659276514267,0.001,23703.0,23701.0,0.1297]
[1659276514490,0.001,23703.0,23702.0,0.64007297]
[1659276514737,0.001,23703.0,23702.0,0.94007297]
[1659276514976,0.05,23703.0,23702.0,1.3973303]
[1659276515203,0.05,23703.0,23702.0,1.09547264]
[1659276515429,0.05,23703.0,23702.0,1.3973303]
[1659276515877,0.05,23703.0,23702.0,1.09567306]
[1659276516356,0.001,23703.0,23702.0,1.09567306]
[1659276516580,0.001,23703.0,23702.0,1.99503072]
[1659276516818,0.001,23703.0,23702.0,1.69317306]
[1659276517045,0.001,23703.0,23702.0,1.77317306]
[1659276517515,0.001,23703.0,23702.0,2.16887306]
[1659276518412,0.001,23703.0,23702.0,2.08887306]
[1659276518636,0.001,23703.0,23702.0,1.34317306]
[1659276518854,0.001,23703.0,23702.0,0.74567306]
[1659276519071,0.001,23703.0,23702.0,0.82567306]
[1659276520373,0.001,23703.0,23702.0,1.04567306]
[1659276520962,0.081,23703.0,23702.0,1.09567306]
[1659276521172,0.081,23703.0,23702.0,1.04567306]
[1659276521417,0.081,23703.0,23702.0,0.74567306]
[1659276522197,0.081,23703.0,23702.0,1.04567306]
[1659276522781,0.001,23703.0,23702.0,0.44160606]
[1659276522983,0.001,23703.0,23702.0,0.45860606]
[1659276523630,0.001,23703.0,23702.0,0.05134873]
[1659276523887,0.06670536,23703.0,23702.0,0.017]
[1659276524321,0.06670536,23703.0,23697.0,0.304067]
[1659276524539,0.06670536,23703.0,23698.0,0.40725733]
[1659276524964,0.13390536,23703.0,23698.0,0.40725733]
[1659276525179,0.13390536,23703.0,23699.0,0.304067]
[1659276525410,0.02290536,23700.0,23699.0,0.304067]
[1659276525641,0.02290536,23700.0,23699.0,1.06132433]
[1659276525836,0.02290536,23700.0,23699.0,1.11132433]
[1659276526494,0.02290536,23700.0,23699.0,1.14547264]
[1659276526912,0.02290536,23700.0,23699.0,1.09932433]
[1659276527340,0.02290536,23700.0,23699.0,1.10171483]
[1659276527526,0.02290536,23700.0,23699.0,1.13586314]
[1659276528036,0.07390536,23703.0,23699.0,1.18586314]
[1659276528248,0.07390536,23703.0,23700.0,1.01132433]
[1659276528492,0.07390536,23703.0,23700.0,0.70725733]
[1659276528699,0.051,23703.0,23700.0,0.70725733]
[1659276528920,0.13,23703.0,23700.0,0.70725733]
[1659276530152,0.051,23703.0,23700.0,0.70725733]
[1659276530556,0.051,23703.0,23701.0,0.354067]
[1659276530771,0.051,23703.0,23702.0,0.3365385]
[1659276530973,0.13,23703.0,23702.0,0.0365385]
[1659276531185,0.13,23703.0,23700.0,0.70725733]
[1659276532093,0.13,23703.0,23701.0,0.03414831]
[1659276532303,0.15290536,23703.0,23701.0,0.03414831]
[1659276532718,0.05,23702.0,23700.0,0.70725733]
[1659276532949,0.05,23702.0,23700.0,0.74140564]
[1659276533176,0.10290536,23703.0,23701.0,0.304067]
[1659276533402,0.10290536,23703.0,23700.0,0.44140564]
[1659276534272,0.02390536,23703.0,23700.0,0.44140564]
[1659276534480,0.02390536,23703.0,23701.0,0.3]
[1659276534916,0.10290536,23703.0,23701.0,0.35]
[1659276535130,0.10872252,23703.0,23700.0,0.44140564]
[1659276535354,0.15862544,23703.0,23700.0,0.44140564]
[1659276535742,0.10290536,23703.0,23700.0,0.44140564]
[1659276536200,0.02390536,23703.0,23700.0,0.44140564]
[1659276536938,0.10290536,23703.0,23700.0,0.44140564]
[1659276537404,0.15280828,23703.0,23700.0,0.44140564]
[1659276537625,0.15280828,23703.0,23700.0,0.49140564]
[1659276538093,0.10290536,23703.0,23700.0,0.49140564]
[1659276538311,0.02390536,23703.0,23701.0,0.3]
[1659276538999,0.09890536,23703.0,23701.0,0.3]
[1659276540139,0.10472252,23703.0,23701.0,0.3]
[1659276540368,0.02390536,23703.0,23701.0,0.3]
[1659276541030,0.02390536,23703.0,23701.0,0.377]
[1659276542349,0.02390536,23703.0,23701.0,0.3]
[1659276543027,0.02390536,23703.0,23701.0,0.377]
[1659276544102,0.02972252,23703.0,23701.0,0.377]
[1659276544309,0.02443021,23703.0,23701.0,0.3]
[1659276544559,0.02390536,23703.0,23701.0,0.3]
[1659276544905,0.02390536,23703.0,23701.0,0.377]
[1659276545524,0.02390536,23703.0,23702.0,0.00337597]
[1659276545731,0.02390536,23703.0,23701.0,0.377]
[1659276546163,0.02390536,23703.0,23701.0,0.3]
[1659276546610,0.02390536,23703.0,23702.0,0.00337597]
[1659276547125,0.02390536,23703.0,23702.0,0.00328858]
[1659276547568,0.02390536,23703.0,23701.0,0.377]
[1659276548361,0.02390536,23703.0,23701.0,0.3]
[1659276548942,0.07971283,23703.0,23700.0,0.40725733]
[1659276549524,0.14880828,23703.0,23701.0,0.03414831]
[1659276550192,0.15471283,23703.0,23700.0,0.40725733]
[1659276550430,0.15471283,23703.0,23700.0,0.44140564]
[1659276550650,0.07380828,23703.0,23700.0,0.44469422]
[1659276551197,0.14880828,23703.0,23700.0,0.44469422]
[1659276551409,0.09890536,23703.0,23700.0,0.44469422]
[1659276551622,0.14880828,23703.0,23700.0,0.44469422]
[1659276552054,0.05,23702.0,23700.0,0.44469422]
[1659276552268,0.14880828,23703.0,23701.0,0.304067]
[1659276552486,0.07380828,23703.0,23700.0,0.44469422]
[1659276553131,0.14880828,23703.0,23700.0,0.44469422]
[1659276553417,0.14880828,23703.0,23700.0,0.49469422]
[1659276553583,0.14880828,23703.0,23701.0,0.3]
[1659276554027,0.09890536,23703.0,23701.0,0.3]
[1659276554243,0.10480991,23703.0,23700.0,0.49469422]
[1659276554455,0.05,23702.0,23700.0,0.49469422]
[1659276554728,0.07971283,23703.0,23701.0,0.604067]
[1659276554943,0.02390536,23703.0,23700.0,0.49469422]
[1659276555205,0.02390536,23703.0,23701.0,0.3]
[1659276555206,0.002,23702.0,23701.0,0.3]
[1659276556499,0.02390536,23703.0,23701.0,0.3]
[1659276557126,0.10290536,23703.0,23701.0,0.3]
[1659276557245,0.10880991,23703.0,23701.0,0.3]
[1659276557463,0.10290536,23703.0,23701.0,0.3]
[1659276557666,0.08,23703.0,23701.0,0.3]
[1659276558124,0.08590455,23703.0,23701.0,0.3]
[1659276558338,0.001,23703.0,23701.0,0.3]
[1659276559088,0.08,23703.0,23701.0,0.3]
[1659276559500,0.08590455,23703.0,23701.0,0.3]
[1659276559725,0.08,23703.0,23701.0,0.3]
[1659276560391,0.001,23703.0,23701.0,0.3]
[1659276561093,0.076,23703.0,23701.0,0.3]
[1659276561326,0.12590292,23703.0,23701.0,0.3]
[1659276561550,0.076,23703.0,23701.0,0.3]
[1659276562000,0.12590292,23703.0,23701.0,0.3]
[1659276562220,0.13180747,23703.0,23701.0,0.3]
[1659276562467,0.05090292,23703.0,23701.0,0.3]
[1659276562735,0.05,23702.0,23701.0,0.3]
[1659276562950,0.001,23703.0,23701.0,0.3]
[1659276563177,0.12590292,23703.0,23701.0,0.510863]
[1659276563871,0.12590292,23703.0,23701.0,0.616294]
[1659276564318,0.12590292,23703.0,23701.0,0.405431]
[1659276564542,0.05090292,23703.0,23701.0,0.405431]
[1659276564761,0.001,23703.0,23701.0,0.405431]
[1659276565208,0.076,23703.0,23701.0,0.405431]
[1659276566522,0.001,23703.0,23701.0,0.105431]
[1659276566544,0.001,23703.0,23701.0,0.10755231]
[1659276567217,0.076,23703.0,23701.0,0.10755231]
[1659276568122,0.076,23703.0,23702.0,0.514909]
[1659276568342,0.076,23703.0,23702.0,0.510842]
[1659276568582,0.001,23703.0,23702.0,0.57297432]
[1659276568807,0.001,23703.0,23702.0,1.33429865]
[1659276569131,0.001,23703.0,23702.0,1.34694213]
[1659276569358,0.08,23703.0,23702.0,1.91734213]
[1659276569584,0.0799192,23703.0,23702.0,1.91734213]
[1659276570036,0.0799192,23703.0,23702.0,1.69385665]
[1659276570521,0.0009192,23703.0,23702.0,1.69385665]
[1659276571205,0.0009192,23703.0,23702.0,1.77385665]
[1659276571431,0.0009192,23703.0,23702.0,1.7759748]
[1659276572531,0.0009192,23703.0,23702.0,1.6959748]
[1659276573209,0.0009192,23703.0,23702.0,1.7039748]
[1659276573865,0.0009192,23703.0,23702.0,1.3539748]
[1659276574091,0.0009192,23703.0,23702.0,0.07225047]
[1659276574544,0.0009192,23703.0,23702.0,0.01425047]
[1659276574782,0.0009192,23703.0,23702.0,0.4215078]
[1659276575008,0.0009192,23703.0,23702.0,0.7255748]
[1659276575215,0.0209192,23703.0,23702.0,0.7995748]
[1659276575649,0.0209192,23703.0,23702.0,1.1495748]
[1659276575876,0.0209192,23703.0,23702.0,1.1995748]
[1659276577123,0.0009192,23703.0,23702.0,1.1255748]
[1659276577342,0.0009192,23703.0,23702.0,1.21721828]
[1659276578498,0.0009192,23703.0,23702.0,1.13821828]
[1659276579177,0.0009192,23703.0,23702.0,1.24431292]
[1659276580408,0.0009192,23703.0,23702.0,1.16531292]
[1659276581135,0.0009192,23703.0,23702.0,1.24531292]
[1659276582276,0.0009192,23703.0,23702.0,1.21821828]
[1659276582528,0.0009192,23703.0,23702.0,1.13821828]
[1659276582757,0.0009192,23703.0,23702.0,0.7255748]
[1659276583187,0.0009192,23703.0,23702.0,0.8055748]
[1659276583858,0.0009192,23703.0,23702.0,1.2055748]
[1659276584101,0.0009192,23703.0,23702.0,0.8055748]
[1659276584553,0.0009192,23703.0,23702.0,0.7255748]
[1659276585065,0.0009192,23703.0,23702.0,0.7555748]
[1659276586691,0.0009192,23703.0,23702.0,0.7255748]
[1659276586927,0.0009192,23703.0,23702.0,1.0755748]
[1659276587148,0.0009192,23703.0,23702.0,1.0485748]
[1659276587586,0.0009192,23703.0,23702.0,1.0985748]
[1659276588266,0.0009192,23703.0,23702.0,1.1485748]
[1659276588513,0.0009192,23703.0,23702.0,1.0755748]
[1659276589191,0.0749192,23703.0,23702.0,1.0905748]
[1659276589647,0.0749192,23703.0,23702.0,1.1405748]
[1659276589889,0.0749192,23703.0,23702.0,1.0905748]
[1659276590130,0.0749192,23703.0,23702.0,1.0405748]
[1659276590365,0.0749192,23703.0,23702.0,1.0905748]
[1659276591056,0.0009192,23703.0,23702.0,1.0755748]
[1659276591732,0.0009192,23703.0,23702.0,1.0255748]
[1659276591959,0.0009192,23703.0,23702.0,0.4215078]
[1659276592521,0.0749192,23703.0,23702.0,0.02925047]
[1659276593148,0.1539192,23703.0,23702.0,0.02925047]
[1659276593597,0.15380383,23703.0,23702.0,0.02925047]
[1659276594274,0.00080383,23703.0,23702.0,0.01425047]
[1659276595235,0.07980383,23703.0,23702.0,0.01425047]
[1659276596453,0.00080383,23703.0,23702.0,0.01425047]
[1659276596662,0.00080383,23703.0,23702.0,0.31831747]
[1659276596883,0.00080383,23703.0,23702.0,0.31425047]
[1659276597099,0.04980383,23703.0,23702.0,0.61831747]
[1659276597337,0.04980383,23703.0,23702.0,0.31425047]
[1659276597562,0.05570838,23703.0,23702.0,0.31425047]
[1659276597784,0.07861374,23703.0,23702.0,0.01425047]
[1659276598240,0.38268074,23703.0,23702.0,0.01425047]
[1659276598476,0.33368074,23703.0,23702.0,0.01425047]
[1659276599191,0.37968074,23703.0,23702.0,0.01213232]
[1659276600555,0.33368074,23703.0,23702.0,0.01213232]
[1659276600786,0.74093807,23703.0,23702.0,0.01213232]
[1659276601007,0.77263807,23703.0,23702.0,0.01213232]
[1659276601236,0.85163807,23703.0,23702.0,0.01213232]
[1659276602396,0.77263807,23703.0,23702.0,0.01213232]
[1659276603087,0.81993807,23703.0,23702.0,0.01213232]
[1659276603795,0.85163807,23703.0,23702.0,0.01213232]
[1659276604256,0.81993807,23703.0,23702.0,0.01213232]
[1659276604489,0.74093807,23703.0,23702.0,0.01213232]
[1659276604729,0.02370919,23703.0,23702.0,0.01213232]
[1659276604943,0.32777619,23703.0,23702.0,0.01213232]
[1659276605194,0.40677619,23703.0,23702.0,0.01213232]
[1659276605423,0.40833404,23703.0,23702.0,0.01213232]
[1659276606148,0.10426704,23703.0,23702.0,0.01213232]
[1659276606379,0.32933404,23703.0,23702.0,0.01213232]
[1659276606827,0.02526704,23703.0,23702.0,0.01213232]
[1659276607300,0.10426704,23703.0,23702.0,0.01213232]
[1659276607986,0.40833404,23703.0,23702.0,0.01213232]
[1659276608182,0.40885889,23703.0,23702.0,0.01213232]
[1659276608418,0.02579189,23703.0,23702.0,0.01213232]
[1659276608645,0.32985889,23703.0,23702.0,0.01213232]
[1659276608871,0.02579189,23703.0,23702.0,0.01213232]
[1659276609110,0.10479189,23703.0,23702.0,0.01213232]
[1659276609320,0.11017159,23703.0,23702.0,0.01213232]
[1659276609767,0.46423859,23703.0,23702.0,0.01213232]
[1659276610281,0.16017159,23703.0,23702.0,0.01213232]
[1659276610529,0.08117159,23703.0,23702.0,0.01213232]
[1659276610750,0.38523859,23703.0,23702.0,0.01213232]
[1659276610967,0.3867874,23703.0,23702.0,0.01213232]
[1659276611197,0.4657874,23703.0,23702.0,0.01213232]
[1659276612384,0.3867874,23703.0,23702.0,0.01213232]
[1659276613054,0.1617204,23703.0,23702.0,0.01213232]
[1659276613292,0.4657874,23703.0,23702.0,0.01213232]
[1659276613525,1.17490239,23703.0,23702.0,0.01213232]
[1659276613741,0.92304473,23703.0,23702.0,0.01213232]
[1659276613978,1.22490239,23703.0,23702.0,0.01213232]
[1659276614196,0.14990292,23698.0,23697.0,0.01531242]
[1659276614425,1.336377,23702.0,23697.0,0.01531242]
[1659276614651,0.14990292,23698.0,23697.0,0.01531242]
[1659276614861,0.45396992,23698.0,23697.0,0.01531242]
[1659276615079,0.47687528,23698.0,23697.0,0.01531242]
[1659276616325,0.14990292,23698.0,23697.0,0.01531242]
[1659276616559,0.02290536,23701.0,23697.0,0.01531242]
[1659276616781,0.304067,23700.0,23697.0,0.01531242]
[1659276617007,0.04990292,23700.0,23697.0,0.42256975]
[1659276617241,0.00155785,23702.0,23697.0,0.47256975]
[1659276617242,0.039,23698.0,23697.0,0.47256975]
[1659276617466,0.039,23698.0,23697.0,0.77663675]
[1659276617700,0.039,23698.0,23697.0,1.31514139]
[1659276618003,0.039,23698.0,23697.0,1.32778487]
[1659276618228,0.0001,23698.0,23697.0,1.88957245]
[1659276618435,0.00155785,23702.0,23699.0,0.05]
[1659276618657,0.00155785,23702.0,23701.0,0.1297]
[1659276618888,0.00080383,23703.0,23701.0,1.73582433]
[1659276619106,0.00080383,23703.0,23702.0,0.71132433]
[1659276619376,0.00080383,23703.0,23702.0,0.85913095]
[1659276619619,0.00080383,23703.0,23702.0,0.41100095]
[1659276620063,0.00670838,23703.0,23702.0,0.00374362]
[1659276620301,0.00080383,23703.0,23702.0,0.00374362]
[1659276620566,0.00080383,23703.0,23701.0,0.00036008]
[1659276620801,0.00080383,23703.0,23701.0,0.40761741]
[1659276621256,0.00080383,23703.0,23702.0,0.079]
[1659276622414,0.00080383,23703.0,23702.0,0.83695733]
[1659276622660,0.00080383,23703.0,23702.0,0.88695733]
[1659276623140,0.00080383,23703.0,23702.0,0.96495733]
[1659276624517,0.00080383,23703.0,23702.0,0.88695733]
[1659276625155,0.00080383,23703.0,23702.0,0.96495733]
[1659276626288,0.00080383,23703.0,23702.0,1.01495733]
[1659276626499,0.00080383,23703.0,23702.0,0.93695733]
[1659276626714,0.00080383,23703.0,23702.0,0.88695733]
[1659276627230,0.00080383,23703.0,23702.0,0.96095733]
[1659276627454,0.00080383,23703.0,23702.0,1.01095733]
[1659276627675,0.00080383,23703.0,23702.0,1.31502433]
[1659276628349,0.00080383,23703.0,23702.0,1.01095733]
[1659276628572,0.00080383,23703.0,23702.0,1.23602433]
[1659276628809,0.00080383,23703.0,23702.0,0.93195733]
[1659276629053,0.00080383,23703.0,23702.0,1.23602433]
[1659276629291,0.00080383,23703.0,23702.0,1.31502433]
[1659276629544,0.00080383,23703.0,23702.0,0.96095733]
[1659276630471,0.00080383,23703.0,23702.0,0.88195733]
[1659276631001,0.00080383,23703.0,23702.0,0.83695733]
[1659276631225,0.00080383,23703.0,23702.0,0.96695733]
[1659276631444,0.00080383,23703.0,23702.0,0.91695733]
[1659276631905,0.00080383,23703.0,23702.0,0.61695733]
[1659276632373,0.06650919,23703.0,23702.0,0.48725733]
[1659276632609,0.06650919,23703.0,23699.0,0.1297]
[1659276632832,0.06650919,23703.0,23700.0,0.40725733]
[1659276633056,0.07361211,23703.0,23700.0,0.40725733]
[1659276633313,0.07361211,23703.0,23702.0,0.079]
[1659276633544,0.37767911,23703.0,23702.0,0.079]
[1659276633780,0.07361211,23703.0,23702.0,0.079]
[1659276634011,0.37767911,23703.0,23702.0,0.079]
[1659276634255,0.05070675,23703.0,23702.0,0.11314831]
[1659276634984,0.00080383,23703.0,23702.0,0.03414831]
[1659276635216,0.00080383,23703.0,23702.0,0.11643689]
[1659276635438,0.00080383,23703.0,23702.0,0.079]
[1659276635884,0.00080383,23703.0,23702.0,0.11314831]
[1659276636330,0.00080383,23703.0,23702.0,0.079]
[1659276636553,0.00080383,23703.0,23700.0,0.30074016]
[1659276637013,0.00080383,23703.0,23701.0,0.03414831]
[1659276637276,0.00080383,23703.0,23702.0,0.079]
[1659276637947,0.00670838,23703.0,23702.0,0.079]
[1659276638166,0.00080383,23703.0,23702.0,0.079]
[1659276638388,0.00080383,23703.0,23700.0,0.3]
[1659276638581,0.00080383,23703.0,23701.0,0.03414831]
[1659276639774,0.00670838,23703.0,23701.0,0.03414831]
[1659276640014,0.00670838,23703.0,23700.0,0.079]
[1659276640231,0.00670838,23703.0,23700.0,0.37974016]
[1659276640465,0.00080383,23703.0,23700.0,0.30074016]
[1659276640697,0.00080383,23703.0,23699.0,0.5408]
[1659276640925,0.00080383,23703.0,23699.0,0.99805733]
[1659276641130,0.00080383,23703.0,23700.0,0.379]
[1659276641412,0.05590455,23702.0,23700.0,0.079]
[1659276641624,0.00590455,23702.0,23700.0,0.07893778]
[1659276641844,0.05070675,23703.0,23700.0,0.11308609]
[1659276642078,0.00080383,23703.0,23700.0,0.11308609]
[1659276642336,0.0025803,23703.0,23700.0,0.11308609]
[1659276642567,0.0025803,23703.0,23700.0,0.03432178]
[1659276642785,0.0025803,23703.0,23700.0,0.33432178]
[1659276643233,0.00434773,23703.0,23700.0,0.46332178]
[1659276643693,0.00434773,23703.0,23700.0,0.11332178]
[1659276644155,0.00434773,23703.0,23700.0,0.41332178]
[1659276644382,0.00434773,23703.0,23700.0,0.33432178]
[1659276645264,0.02725309,23703.0,23700.0,0.41332178]
[1659276645484,0.03315764,23703.0,23700.0,0.079]
[1659276646221,0.02725309,23703.0,23700.0,0.11332178]
[1659276646886,0.0053797,23702.0,23700.0,0.03432178]
[1659276647114,0.02725309,23703.0,23700.0,0.11332178]
[1659276647332,0.02725309,23703.0,23700.0,0.079]
[1659276648022,0.02725309,23703.0,23700.0,0.11643689]
[1659276648023,0.03315764,23703.0,23700.0,0.11643689]
[1659276648480,0.03315764,23703.0,23700.0,0.03743689]
[1659276649186,0.10415764,23703.0,23700.0,0.05443689]
[1659276649410,0.09825309,23703.0,23700.0,0.05443689]
[1659276650376,0.09825309,23703.0,23700.0,0.017]
[1659276650620,0.02725309,23703.0,23699.0,0.94805733]
[1659276651107,0.02725309,23703.0,23700.0,0.078]
[1659276651338,0.05925309,23703.0,23700.0,0.078]
[1659276651570,0.05925309,23703.0,23701.0,0.03414831]
[1659276652259,0.05925309,23703.0,23700.0,0.078]
[1659276652942,0.00590455,23702.0,23699.0,0.94805733]
[1659276653182,0.05925309,23703.0,23700.0,0.078]
[1659276653878,0.00590455,23702.0,23700.0,0.078]
[1659276654568,0.02725309,23703.0,23700.0,0.03743689]
[1659276654808,0.02725309,23703.0,23699.0,0.94805733]
[1659276654809,0.05580747,23702.0,23699.0,0.94805733]
[1659276655266,0.07080747,23702.0,23700.0,0.074]
[1659276655509,0.06490292,23702.0,23700.0,0.10814831]
[1659276655960,0.07080747,23702.0,23700.0,0.074]
[1659276656187,0.015,23702.0,23700.0,0.074]
[1659276656483,0.04990292,23702.0,23701.0,0.03414831]
[1659276656703,0.02725309,23703.0,23699.0,0.40725733]
[1659276656925,0.00590455,23702.0,23699.0,0.40725733]
[1659276657373,0.02725309,23703.0,23699.0,0.40725733]
[1659276657620,0.02725309,23703.0,23700.0,0.03414831]
[1659276658330,0.015,23702.0,23701.0,0.074]
[1659276658557,0.015,23702.0,23701.0,0.07416857]
[1659276658772,0.015,23702.0,23701.0,0.074]
[1659276659652,0.03315764,23703.0,23699.0,0.40725733]
[1659276660343,0.03315764,23703.0,23700.0,0.03431689]
[1659276660971,0.02725309,23703.0,23700.0,0.03431689]
[1659276661209,0.015,23702.0,23701.0,0.074]
[1659276661494,0.01552485,23702.0,23701.0,0.074]
[1659276661939,0.015,23702.0,23701.0,0.074]
[1659276662615,0.00590455,23702.0,23699.0,0.40725733]
[1659276663072,0.05580747,23702.0,23699.0,0.40725733]
[1659276663518,0.05,23701.0,23699.0,0.48625733]
[1659276663759,0.05580747,23702.0,23699.0,0.48625733]
[1659276664012,0.05,23701.0,23700.0,0.03743689]
[1659276664233,0.02548566,23703.0,23700.0,0.03743689]
[1659276665384,0.00590455,23702.0,23699.0,0.40725733]
[1659276665639,0.06548566,23703.0,23700.0,0.03743689]
[1659276665866,0.06548566,23703.0,23699.0,0.40725733]
[1659276666512,0.00590455,23702.0,23699.0,0.40725733]
[1659276666711,0.02548566,23703.0,23700.0,0.03446905]
[1659276666963,0.04983387,23702.0,23700.0,0.03446905]
[1659276667420,0.02548566,23703.0,23699.0,0.40725733]
[1659276669024,0.02548566,23703.0,23700.0,0.03446905]
[1659276669324,0.03139021,23703.0,23700.0,0.03446905]
[1659276669808,0.03139021,23703.0,23699.0,0.40725733]
[1659276670477,0.03316475,23703.0,23698.0,0.70799749]
[1659276670702,0.06516475,23703.0,23700.0,0.078]
[1659276671154,0.36923175,23703.0,23700.0,0.078]
[1659276671677,0.06516475,23703.0,23700.0,0.078]
[1659276672365,0.36923175,23703.0,23700.0,0.078]
[1659276672576,0.03316475,23703.0,23698.0,0.70799749]